Cogmind - Beta 13 @@@ ROGUE MODE // 2024.08.05 @ 17:23:17 Player: YBOUZL Result: Destroyed by P-60 Hacker with Shock Rifle Performance ------------- Evolutions (2) 1000 Regions Visited (5) 1000 Robots Destroyed (40) 200 Value Destroyed (1801) 1801 Prototype IDs (4) 80 Alien Tech Used (0) 0 Bonus (298) 298 TOTAL SCORE: 4379 Bonus ------- High Alert Combat Kills 98 Entered Garrisons 200 Cogmind --------- Core Integrity 0/550 Matter 9/300 Energy 88/100 System Corruption 7% Temperature Cool (0) Movement Core (350) Ox6 Location -8/Garrison Parts ------- > --- POWER (1) -------- (None) > --- PROPULSION (5) --- (None) > --- UTILITY (2) ------ Large Storage Unit > --- WEAPON (3) ------- (None) > --- INVENTORY (15) --- Light Nuclear Core Carbon-fiber Leg Authchip [R/Combat] Datajack Plasma Cutter Peak State ------------ > --- POWER ------------ Light Deuterium Engine > --- PROPULSION ------- Aluminum Leg Aluminum Leg Carbon-fiber Leg Carbon-fiber Leg Titanium Leg > --- UTILITY ---------- Large Storage Unit Reaction Control System > --- WEAPON ----------- Heavy Assault Rifle Gauss Rifle Improved Grenade Launcher > --- INVENTORY -------- Light Nuclear Core Aluminum Leg Aluminum Leg Aluminum Leg Cooling System Small Laser Beam Rifle Beam Rifle Pulse Rifle Assault Rifle Light Assault Rifle Advanced EMP Blaster Datajack Plasma Cutter [Rating: 29] Favorites ----------- Power Improved Ion Engine Engine Improved Ion Engine Power Core Micro Nuclear Core Propulsion Aluminum Leg Leg Aluminum Leg Utility Large Storage Unit Device Reaction Control System Storage Large Storage Unit Processor Targeting Computer Weapon Heavy Assault Rifle Energy Gun Improved EM Shotgun Ballistic Gun Heavy Assault Rifle Launcher Improved Grenade Launcher Build | -11 -10 -9 -9 -8 -8 ------- Run | Yrd Mat Mat Min Mat Gar Slots Evolved 4 | . . 2 . 2 . Power . | . . . . . . Propulsion 3 | . . 2 . 1 . Utility . | . . . . . . Weapon 1 | . . . . 1 . Parts Attached 49 | 6 2 8 . 11 22 Power 9 | 1 1 2 . 2 3 Engine 6 | 1 1 2 . 2 . Core 3 | . . . . . 3 Reactor . | . . . . . . Propulsion 14 | 2 . 3 . 2 7 Treads . | . . . . . . Leg 14 | 2 . 3 . 2 7 Wheel . | . . . . . . Hover . | . . . . . . Flight . | . . . . . . Utility 5 | 1 1 1 . . 2 Device 2 | . . . . . 2 Storage 2 | 1 . 1 . . . Processor 1 | . 1 . . . . Hackware . | . . . . . . Protection . | . . . . . . Artifact . | . . . . . . Weapon 21 | 2 . 2 . 7 10 Energy Gun 10 | 1 . 1 . 2 6 Energy Cannon . | . . . . . . Ballistic Gun 6 | 1 . 1 . 2 2 Ballistic Cannon . | . . . . . . Launcher 5 | . . . . 3 2 Special Weapon . | . . . . . . Impact Weapon . | . . . . . . Slashing Weapon . | . . . . . . Piercing Weapon . | . . . . . . Special Melee Weapon . | . . . . . . Unidentified Prototypes 2 | . . 1 . 1 . Parts Lost 24 | . . . . 2 22 Power 3 | . . . . 1 2 Propulsion 9 | . . . . 1 8 Utility 3 | . . . . . 3 Weapon 9 | . . . . . 9 Highest Loss Streak 16 | . . . . 2 16 To Critical Strikes . | . . . . . . Average Slot Usage (%) 93 | . 99 93 100 88 90 Engine 8 | . 14 11 11 7 4 Core 1 | . . . . . 4 Leg 38 | . 28 37 44 36 41 Device 2 | . . . . . 6 Storage 10 | . 14 11 11 9 9 Processor 7 | . 13 11 11 9 . Energy Gun 9 | . 14 11 11 13 5 Ballistic Gun 12 | . 14 11 11 13 13 Launcher 1 | . . . . . 4 Naked Turns . | . . . . . . Heaviest Build 40 | 11 13 33 33 38 40 Greatest Support 67 | 20 20 40 40 62 67 Greatest Overweight (x) 8 | . . . . 1 8 Average Overweight (x) . | . . . . . . Largest Inventory Capacity 15 | 8 8 15 15 15 15 Average Capacity 13 | 6 8 11 15 15 15 Most Carried 15 | 3 4 15 15 15 15 Average Carried 10 | 1 2 7 14 13 13 Final Capacity 15 | 8 8 15 15 15 15 Final Carried 15 | 2 4 15 15 15 5 Class Distribution -------------------- 29% | Scavenger-Mutant 25% | Mutant 23% | Scavenger-Gunner 19% | Scavenger-Tank Dominant Class ---------------- Mutant | -10/Materials Scavenger-Mutant | -9/Materials Scavenger-Mutant | -9/Mines Scavenger-Gunner | -8/Materials Scavenger-Tank | -8/Garrison Resources | -11 -10 -9 -9 -8 -8 ----------- Run | Yrd Mat Mat Min Mat Gar Matter Collected 1048 | 198 60 288 15 79 408 Remotely . | . . . . . . Salvage Created 1372 | . 107 382 105 94 684 Parts 88 | . 5 36 5 7 35 Haulers Intercepted . | . . . . . . Recyclers Shooed 1 | . . 1 . . . Parts Field Recycled . | . . . . . . Retrieved Matter . | . . . . . . Parts Self-Destructed . | . . . . . . Prevented . | . . . . . . Kills | -11 -10 -9 -9 -8 -8 ------- Run | Yrd Mat Mat Min Mat Gar Combat Hostiles Destroyed 36 | . 2 9 3 2 20 Guns 25 | . 2 9 3 2 9 AOE 11 | . . . . . 11 Classes Destroyed 8 | . 2 4 . 1 1 Worker 1 | . . 1 . . . Operator 1 | . 1 . . . . Watcher 2 | . . 2 . . . Swarmer 9 | . . 3 3 . 3 Grunt 16 | . 2 3 . . 11 Sentry 5 | . . 3 . 1 1 Hunter 4 | . . . . 1 3 Programmer 2 | . . . . . 2 Best Kill Streak 8 | . 1 4 3 1 8 Combat Bots Only 8 | . 1 3 3 1 8 Max Kills in Single Turn 2 | . 1 1 1 1 2 Gunslinging . | . . . . . . Exploded 2 | . . . . . 2 Melee . | . . . . . . Uniques/NPCs Destroyed . | . . . . . . Combat | -11 -10 -9 -9 -8 -8 -------- Run | Yrd Mat Mat Min Mat Gar Hostile Shots Fired 259 | . 5 82 5 12 155 Missed 76 | . 3 25 2 4 42 Damage Taken 2924 | . 22 662 29 137 2074 Core 681 | . 12 114 . . 555 Absorbed by Shields . | . . . . . . Core Remaining (%) 88 | 100 95 . 71 . . Volleys Fired 123 | . 18 44 5 8 48 Largest 3 | . 2 2 2 3 3 Hottest 163 | . 60 68 68 131 163 Shots Fired 268 | . 32 82 9 20 125 Gun 247 | . 32 82 9 20 104 Cannon . | . . . . . . Launcher 21 | . . . . . 21 Special . | . . . . . . Kinetic 145 | . 18 44 5 11 67 Thermal 74 | . 14 29 . 8 23 Explosive 20 | . . . . . 20 Electromagnetic 29 | . . 9 4 1 15 Robot Hit Streak 12 | . 4 12 3 5 10 Robot Miss Streak 4 | . 3 4 1 4 3 Penetration Max 1 | . . . . . 1 Secondary Targets 2 | . . 1 . . 1 Max Gunslinging Chain 1 | . . 1 . . 1 Shots Hit Robots 154 | . 15 57 4 10 68 Core Hits 75 | . 8 20 4 5 38 Critical Kills . | . . . . . . Critical Parts Destroyed 2 | . . . . . 2 Critical Strikes 2 | . . . . . 2 Destroy 2 | . . . . . 2 Melee Attacks . | . . . . . . Impact . | . . . . . . Slashing . | . . . . . . Piercing . | . . . . . . Sneak Attacks . | . . . . . . Combat Hostiles . | . . . . . . Follow-up Attacks . | . . . . . . Damage Inflicted 3144 | . 169 789 50 162 1974 Guns 2150 | . 169 756 50 162 1013 Cannons . | . . . . . . Explosions 993 | . . 33 . . 960 Melee . | . . . . . . Ramming 1 | . . . . . 1 Kinetic 1243 | . 105 396 . 90 652 Thermal 754 | . 64 279 . 52 359 Explosive 895 | . . . . . 895 Electromagnetic 251 | . . 114 50 20 67 Impact . | . . . . . . Slashing . | . . . . . . Piercing . | . . . . . . Highest Corruption 7 | . . . . . 7 Average Corruption 2 | . . . . . 2 Corruption Purged . | . . . . . . Corruption Blocked . | . . . . . . Effects 6 | . . . . . 6 Message Errors 3 | . . . . . 3 Matter Fused 1 | . . . . . 1 Heat Flow Errors 1 | . . . . . 1 Weapon Failures 1 | . . . . . 1 Overload Shots . | . . . . . . Overflow Damage 47 | . . . . . 47 Projectiles . | . . . . . . Explosions 47 | . . . . . 47 Melee . | . . . . . . Knockbacks . | . . . . . . Impact . | . . . . . . Kinetic . | . . . . . . Secondary . | . . . . . . Self-Inflicted Damage 339 | . . . . . 339 Shots 10 | . . . . . 10 Rammed . | . . . . . . Targets Rammed 1 | . . . . . 1 Kicked 1 | . . . . . 1 Crushed . | . . . . . . Highest Temperature 585 | . 6 51 . 63 585 Average Temperature 113 | . 6 15 . 21 169 Received Heat Transfer 636 | . 12 219 . . 405 Effects 5 | . . . . . 5 Shutdowns 1 | . . . . . 1 Interference 1 | . . . . . 1 Matter Decay 1 | . . . . . 1 Short Circuit 1 | . . . . . 1 Damage (minor) 1 | . . . . . 1 Siege Activations . | . . . . . . Robots Corrupted . | . . . . . . Combat Hostiles . | . . . . . . Parts Fried 1 | . . . . . 1 Impact Corruptions . | . . . . . . Robots Melted . | . . . . . . Combat Hostiles . | . . . . . . Parts Melted . | . . . . . . Heat Transferred 1540 | . 150 550 . 111 729 Parts Sabotaged . | . . . . . . Parts Stolen . | . . . . . . Parts Stripped . | . . . . . . Power Chain Reactions 2 | . . 1 . . 1 Alert | -11 -10 -9 -9 -8 -8 ------- Run | Yrd Mat Mat Min Mat Gar Peak Influence 698 | . 127 370 246 185 698 Initial 144 | . . 53 144 95 120 Average 257 | . 68 202 194 143 443 Maximum Alert Level 2 | . . 1 1 . 2 Low Security (%) 51 | 100 100 54 52 100 8 Level 1 32 | . . 45 47 . 49 Level 2 15 | . . . . . 41 Level 3 . | . . . . . . Level 4 . | . . . . . . Level 5 . | . . . . . . High Security . | . . . . . . Max Security . | . . . . . . Squads Dispatched 3 | . 2 1 . . . Investigation 1 | . . 1 . . . Extermination . | . . . . . . Reinforcement 2 | . 2 . . . . Assault . | . . . . . . Garrison . | . . . . . . Intercept . | . . . . . . Searches Triggered . | . . . . . . Construction Impeded . | . . . . . . Haulers Reinforced . | . . . . . . Active Scanning Responses . | . . . . . . Cargo Convoy Interrupts . | . . . . . . Stealth | -11 -10 -9 -9 -8 -8 --------- Run | Yrd Mat Mat Min Mat Gar Distress Signals 3 | . 1 2 . . . Communications Jammed . | . . . . . . Distress Signals . | . . . . . . Times Spotted 46 | . 7 11 3 5 20 Peak Tracking Total 4 | . 3 4 3 2 4 Tactical Retreats . | . . . . . . Traps | -11 -10 -9 -9 -8 -8 ------- Run | Yrd Mat Mat Min Mat Gar Traps Triggered . | . . . . . . Indirectly . | . . . . . . Trap Hack Attempts . | . . . . . . Triggered . | . . . . . . Disarmed . | . . . . . . Reprogrammed . | . . . . . . Reused . | . . . . . . Traps Extracted . | . . . . . . Installed . | . . . . . . Triggered . | . . . . . . Machines | -11 -10 -9 -9 -8 -8 ---------- Run | Yrd Mat Mat Min Mat Gar Machines Disabled 3 | . . . 1 . 2 Max in Single Turn 1 | . . . 1 . 1 Garrison Relay 2 | . . . . . 2 Machines Repaired . | . . . . . . Machines Dismantled . | . . . . . . Machines Sabotaged . | . . . . . . Overloaded Fab Kills . | . . . . . . Hacking | -11 -10 -9 -9 -8 -8 --------- Run | Yrd Mat Mat Min Mat Gar Machines Accessed 8 | . 2 1 2 2 1 Terminals 6 | . 2 1 1 1 1 Fabricators . | . . . . . . Repair Stations . | . . . . . . Recycling Units . | . . . . . . Scanalyzers . | . . . . . . Garrison Access 1 | . . . . 1 . Total Hacks 30 | . 9 5 10 3 3 Successful 17 | . 5 2 7 2 1 Failed 13 | . 4 3 3 1 2 Catastrophic 1 | . . . 1 . . Database Lockouts . | . . . . . . Manual . | . . . . . . Terminals 27 | . 9 5 9 1 3 Fabricators . | . . . . . . Repair Stations . | . . . . . . Recycling Units . | . . . . . . Scanalyzers . | . . . . . . Garrison Access 2 | . . . . 2 . Terminal Hacks 16 | . 5 2 7 1 1 Record 4 | . . . 4 . . Robot Analysis 1 | . . . . 1 . Prototype ID Bank 1 | . . 1 . . . Open Door 1 | . . . 1 . . Emergency Access Points 1 | . . . . . 1 Alert Level 1 | . . 1 . . . Dispatch Records 1 | . . . 1 . . Maintenance Status 1 | . 1 . . . . Security Status 1 | . 1 . . . . Reinforcement Status 1 | . 1 . . . . Zone Layout 3 | . 2 . 1 . . Fabricator Hacks . | . . . . . . Repair Station Hacks . | . . . . . . Recycling Unit Hacks . | . . . . . . Scanalyzer . | . . . . . . Garrison Access Hacks 1 | . . . . 1 . Unlock Access 1 | . . . . 1 . Unauthorized Hacks . | . . . . . . Terminals . | . . . . . . Fabricators . | . . . . . . Repair Stations . | . . . . . . Recycling Units . | . . . . . . Scanalyzers . | . . . . . . Garrison Access . | . . . . . . Data Cores Recovered 1 | . 1 . . . . Used . | . . . . . . Hacking Detections 5 | . 1 1 1 1 1 Full Trace Events 1 | . . 1 . . . Feedback Events . | . . . . . . Feedback Blocked . | . . . . . . Robot Schematics Acquired . | . . . . . . Robots Built . | . . . . . . Authchips . | . . . . . . Time . | . . . . . . Total Robot Build Rating . | . . . . . . Part Schematics Acquired . | . . . . . . Parts Built . | . . . . . . Authchips . | . . . . . . Time . | . . . . . . Total Part Build Rating . | . . . . . . Parts Repaired . | . . . . . . Time . | . . . . . . Parts Recycled . | . . . . . . Recycled Matter . | . . . . . . Retrieved Matter . | . . . . . . Retrieved Components . | . . . . . . Parts Scanalyzed . | . . . . . . Part Schematics Acquired . | . . . . . . Parts Damaged . | . . . . . . Bothacking | -11 -10 -9 -9 -8 -8 ------------ Run | Yrd Mat Mat Min Mat Gar Used RIF Installer . | . . . . . . Robots Hacked . | . . . . . . Non-combat . | . . . . . . Combat . | . . . . . . Robot Hacks Applied . | . . . . . . Relay Couplers Released 9 | . . . . . 9 Machine Destruction 9 | . . . . . 9 Fabnet Peak Effective % . | . . . . . . Robots Rewired . | . . . . . . Allies Hacked . | . . . . . . Hacks Repelled . | . . . . . . Allies | -11 -10 -9 -9 -8 -8 -------- Run | Yrd Mat Mat Min Mat Gar Total Allies . | . . . . . . Largest Group . | . . . . . . Highest-Rated Group . | . . . . . . Highest-Rated Ally . | . . . . . . Total Orders . | . . . . . . Ally Attacks . | . . . . . . Total Damage . | . . . . . . Kills . | . . . . . . Allies Corrupted . | . . . . . . Allies Melted . | . . . . . . Intel | -11 -10 -9 -9 -8 -8 ------- Run | Yrd Mat Mat Min Mat Gar Robot Analysis Total 1 | . . . . 1 . Derelict Logs Recovered . | . . . . . . Drone Launches . | . . . . . . Drone Recoveries . | . . . . . . Exploration | -11 -10 -9 -9 -8 -8 ------------- Run | Yrd Mat Mat Min Mat Gar Turns Passed 2292 | 64 381 353 327 298 869 Spaces Moved 1433 | 51 272 144 241 194 531 Core 18 | 15 . . . . 3 Treads . | . . . . . . Legs 1415 | 36 272 144 241 194 528 Wheels . | . . . . . . Hover . | . . . . . . Flight . | . . . . . . Fastest Speed 50 | 50 120 120 120 120 120 Average Speed 121 | 99 120 120 120 122 125 Slowest Speed 450 | 120 120 120 120 190 450 Overloaded Moves . | . . . . . . Propulsion Burnouts . | . . . . . . Robots Hopped . | . . . . . . Cave-ins Triggered . | . . . . . . Exploration Rate (%) 31 | 3 43 12 54 21 54 Regions Visited 5 Branch Regions 1 Pre-discovered Areas . | . . . . . . Known Exits Taken 1 | . . . . 1 . Unknown Exits Taken 4 | 1 1 1 1 . . Scrap Searched . | . . . . . . Spaces Dug 15 | . . . . . 15 Terrain Destroyed 126 | . . 2 . . 124 Melee . | . . . . . . Projectile 2 | . . . . . 2 AOE 124 | . . 2 . . 122 Terrain Rammed . | . . . . . . Walls Destroyed . | . . . . . . Machines Disabled . | . . . . . . Actions | -11 -10 -9 -9 -8 -8 --------- Run | Yrd Mat Mat Min Mat Gar Total 1752 | 64 294 243 271 236 644 Wait 77 | . . 27 23 14 13 Move 1425 | 50 271 143 240 193 528 Hop . | . . . . . . Pick Up 47 | 8 3 16 1 6 13 Fast Attach 3 | . . . . 2 1 Attach 31 | 6 1 4 . 4 16 Detach 3 | . . . . . 3 Swap 15 | . 1 4 . 5 5 Drop 27 | . . 5 2 4 16 Fire 123 | . 18 44 5 8 48 Melee . | . . . . . . Ram . | . . . . . . Kick 1 | . . . . . 1 Crush . | . . . . . . Escape Stasis . | . . . . . . Rewire . | . . . . . . Trap . | . . . . . . Miscellaneous . | . . . . . . Route ------- -11/Scrapyard -10/Materials (discovered 2 exits: *Mat x2) -9/Materials -9/Mines -8/Materials -8/Garrison (discovered 2 exits: [*Mat x2]) History --------- Turn | Location | Event 2 | -11/Scrapyard | Met Revision 17 19 | -11/Scrapyard | Discovered new exit (range 16) 65 | -11/Scrapyard | Entered Materials 249 | -10/Materials | Discovered new exit (range 16) 302 | -10/Materials | Build established: Mutant 440 | -10/Materials | Discovered new exit (range 5) 446 | -10/Materials | Entered another Materials area 446 | -9/Materials | Evolved 2 slots: Propulsion x2 766 | -9/Materials | Discovered new exit (range 8) 799 | -9/Materials | Entered Mines 803 | -9/Mines | Found the Drone Emporium 804 | -9/Mines | Met a Derelict bent on vengeance 814 | -9/Mines | Found Prototype Device 834 | -9/Mines | Build established: Scavenger-Mutant 1116 | -9/Mines | Discovered new exit (range 5) 1126 | -9/Mines | Entered Materials 1126 | -8/Materials | Evolved 2 slots: Propulsion x1, Weapon x1 1418 | -8/Materials | Identified exit to Garrison 1424 | -8/Materials | Entered Garrison 1472 | -8/Garrison | Triggered checkpoint 1499 | -8/Garrison | Triggered checkpoint 1518 | -8/Garrison | Build established: Scavenger-Gunner 1535 | -8/Garrison | Destroyed 8 combat bots 1600 | -8/Garrison | Triggered checkpoint 1683 | -8/Garrison | Discovered new exit (range 12) 1700 | -8/Garrison | Attempted to access garrison exit controls, blocked by remote lockdown 1750 | -8/Garrison | Triggered checkpoint 1766 | -8/Garrison | Triggered checkpoint 1864 | -8/Garrison | Discovered new exit (range 9) 1875 | -8/Garrison | Attempted to access garrison exit controls, blocked by remote lockdown 1915 | -8/Garrison | Build established: Scavenger-Tank 1916 | -8/Garrison | Triggered checkpoint 1947 | -8/Garrison | Garrison Relay disabled 1976 | -8/Garrison | Garrison Relay disabled 1986 | -8/Garrison | Lost 3 parts (1p2n) 2261 | -8/Garrison | Core integrity fell below 50% 2278 | -8/Garrison | Core integrity fell below 20% 2293 | -8/Garrison | Destroyed by P-60 Hacker with Shock Rifle Last Messages --------------- 02255_ <,JI4H#0RM5UWB1H2DAN|5IA1CEEVN5NWT 02257_ Mic. Nuclear Core destroyed. 02257_ P-60 Hacker resets P-60 Hacker, system corruption cleaned. 02259_ The unstable cave ceiling collapses. 02263_ Shock Rifle destroyed. 02263_ P-60 Hacker destroyed. 02268_ The unstable cave ceiling collapses. 02268_ Imp. Heat Sink crushed. 02269_ Hvy. Assault Rifle destroyed. 02275_ Slug penetrates P-60 Hacker. 02275_ Chain reaction triggered in Corrupted Mic. Nuclear Core. 02275_ Carbon-fiber Leg destroyed. 02277_ Gauss Rifle destroyed. 02279_ System corrupted: Matter fused (-7). 02280_ P-60 Hacker resets P-60 Hacker, system corruption cleaned. 02281_ The unstable cave ceiling collapses. 02288_ Adv. EMP Blaster destroyed. Map ----- +----------------------------------------------------+ | | | | | | | | | | | | | | | | | | | | | | | ?????????????????????????????????????????????????? | | ?????????????????????????????????????????????????? | | ?????????????????????????????????????????????????? | | ????????????#????????????????????????????????????? | | ??????????? ???????????????????????????????????? | | ??????????? ???????????????????????????????????? | | ?????????? ??????????????????????????????????? | | ?????????"""""""?????????????????????????????????? | | ????????#""" """?? ???????????????#####??????????? | | ???????? !!! "#" ??????????????## #??????????? | | ???????? ! ???????????????# ##??????????? | | ????????#" ????????????????# #??????????? | | ????????#"""["""#???????########## #??????????? | | ????????#"""["""#???????# p + ### ###??????????? | | ?????????#!!!![#????????#@ # # !#?# #????????????? | | ?????????+![^[^+????????##p# #?# #######??????? | | ?????????#*! =!#????????# != ### #"""""#??????? | | ?????????#! [#????????# %[ # # ## ##??????? | | ?????????### ###????????##"! ;## #??????? | | ???????????# #???????????# ## ######??????? | | ???????##### #???????????### ; #### #???????#### | | ???????# #!##??????????### #### = ##???????# | | ??###### #! #??????????# += ###???????# < | | ### ##??????????# ### [ #???????# | | #"# ##### #??????????# # #### # #???????# # | | #" #???# ## ##??????????# ## = #???????# # | | #" #???# ## #???????????## # ## # #???????# # | | #" #???# ## #????????????## #### ####?????# # | | #"# #???# ## #?????????????# #??### #?????# # | | ###+##### ## #?????????????# #????#+### #?????# # | | ??# ## #?????????????# #????????# #?????# # | | ??# ######## ####??????????# ###??????# #?????# # | | ###+######## ##T####?????### # #??????# #?????# # | | #????## ####+### ####### # | | #????# # | | ####### ###+#### #????## # | | ??????# #?????## ##????# ###+## ########## | | ####### #?# ### #????# ####????# #????????? | | """""## #?# #????## +???????# #????????? | +----------------------------------------------------+ Best States ------------- Heat Dissipation 53 Energy Generation 15 Energy Capacity 265 Matter Stores 300 Matter Capacity 300 Sight Range 16 Terrain Scan Density 10 Evasion (%) 59 Targeting Accuracy 5 Authchip Count 1 Item Schematics ----------------- None Robot Schematics ------------------ None Fabricated ------------ Nothing Alien Tech Used ----------------- None Achievements -------------- None Challenges ------------ None Game ------ Seed CompositeBiocellMace Manual? 0 Play Time 00:32:29 Cumulative 11.3 hours Start 2024.08.05 @ 16:41:23 End 2024.08.05 @ 17:23:17 Sessions 1 Manual Loads 0 Difficulty Rogue Special Mode None Game No. 27 Rogue 27 Adventurer 0 Explorer 0 Win Type - Total 0 Types 0/0/0/0/0/0/0/0/0 Lore% 15 Gallery% 20 Achievement% 14 Wizard Run 0 Options --------- Layout 1 ASCII 0 Keyboard 0 Movement Mouse Keybinds 0 Fullscreen 1 Font 24/Smallcaps Map View 50x35 Zoom Use 0% Tactical HUD 1 Map Filters NONE Filters NONE Steam 1 RUN: 3fb47715-31f8-41b6-8b4a-c876fd7c03b0